[Event "Titled Tuesday Blitz July 4 Early 2023"]
[White "Singgih, Diajeng Theresa"]
[Black "Wartiovaara, Oliver"]
[WhiteFideId "7104391"]
[BlackFideId "513024"]
[WhiteElo "2114"]
[BlackElo "2378"]
[Result "0-1"]
[Round "5"]
[TimeControl "180+2"]
[Date "2023.07.04"]
[WhiteClock "0:00:00"]
[BlackClock "0:00:11"]
[Board "192"]

1. e4 {[%clk 0:02:52]}  e6 {[%clk 0:02:55]} 2. d4 {[%clk 0:02:49]}  d5 {[%clk 0:02:55]} 3. exd5 {[%clk 0:02:49]}  Qxd5 {[%clk 0:02:51]} 4. Nf3 {[%clk 0:02:42]}  Nf6 {[%clk 0:02:50]} 5. c4 {[%clk 0:02:37]}  Bb4+ {[%clk 0:02:49]} 6. Bd2 {[%clk 0:02:29]}  Bxd2+ {[%clk 0:02:41]} 7. Nbxd2 {[%clk 0:02:28]}  Qa5 {[%clk 0:02:39]} 8. Bd3 {[%clk 0:02:26]}  O-O {[%clk 0:02:36]} 9. O-O {[%clk 0:02:26]}  Rd8 {[%clk 0:02:27]} 10. Nb3 {[%clk 0:02:05]}  Qh5 {[%clk 0:02:23]} 11. Re1 {[%clk 0:02:01]}  Na6 {[%clk 0:02:13]} 12. a3 {[%clk 0:02:00]}  Bd7 {[%clk 0:02:02]} 13. Re5 {[%clk 0:01:59]}  Qh6 {[%clk 0:02:00]} 14. Ng5 {[%clk 0:01:56]}  Ba4 {[%clk 0:01:50]} 15. Nxh7 {[%clk 0:01:39]}  Bxb3 {[%clk 0:01:45]} 16. Qxb3 {[%clk 0:01:32]}  Nxh7 {[%clk 0:01:02]} 17. Qxb7 {[%clk 0:01:29]}  Nf6 {[%clk 0:00:44]} 18. Qxa6 {[%clk 0:01:24]}  Rxd4 {[%clk 0:00:43]} 19. Re3 {[%clk 0:00:59]}  Ng4 {[%clk 0:00:39]} 20. Rh3 {[%clk 0:00:58]}  Qd2 {[%clk 0:00:39]} 21. Bh7+ {[%clk 0:00:54]}  Kf8 {[%clk 0:00:32]} 22. Rf1 {[%clk 0:00:54]}  Rf4 {[%clk 0:00:20]} 23. Qc6 {[%clk 0:00:47]}  Rd8 {[%clk 0:00:17]} 24. Rf3 {[%clk 0:00:23]}  Rxf3 {[%clk 0:00:13]} 25. Qxf3 {[%clk 0:00:23]}  Nf6 {[%clk 0:00:13]} 26. Be4 {[%clk 0:00:14]}  Qxb2 {[%clk 0:00:12]} 27. Bc6 {[%clk 0:00:12]}  Qd2 {[%clk 0:00:10]} 28. Qe3 {[%clk 0:00:09]}  Qxe3 {[%clk 0:00:10]} 29. fxe3 {[%clk 0:00:10]}  Rd3 {[%clk 0:00:09]} 30. a4 {[%clk 0:00:07]}  Rxe3 {[%clk 0:00:09]} 31. Rb1 {[%clk 0:00:06]}  Ke7 {[%clk 0:00:09]} 32. Rb7 {[%clk 0:00:05]}  Kd6 {[%clk 0:00:10]} 33. Bb5 {[%clk 0:00:05]}  Ng4 {[%clk 0:00:10]} 34. Kf1 {[%clk 0:00:05]}  Ra3 {[%clk 0:00:09]} 35. Rxa7 {[%clk 0:00:04]}  Ne5 {[%clk 0:00:10]} 36. Ra8 {[%clk 0:00:04]}  c6 {[%clk 0:00:10]} 37. Ba6 {[%clk 0:00:03]}  Rxa4 {[%clk 0:00:10]} 38. Bb7 {[%clk 0:00:03]}  Rxa8 {[%clk 0:00:10]} 39. Bxa8 {[%clk 0:00:04]}  Kc5 {[%clk 0:00:11]} 40. Bb7 {[%clk 0:00:04]}  Kxc4 {[%clk 0:00:11]} 41. Ke2 {[%clk 0:00:04]}  Kb5 {[%clk 0:00:11]} 42. Ke3 {[%clk 0:00:04]}  Kb6 {[%clk 0:00:11]} 43. Bc8 {[%clk 0:00:03]}  Ng4+ {[%clk 0:00:11]} 44. Kf4 {[%clk 0:00:03]}  Nf6 {[%clk 0:00:11]} 45. Ke5 {[%clk 0:00:02]}  c5 {[%clk 0:00:10]} 46. Kd6 {[%clk 0:00:02]}  c4 {[%clk 0:00:11]} 47. Ke7 {[%clk 0:00:01]}  c3 {[%clk 0:00:11]} 48. Kxf7 {[%clk 0:00:02]}  c2 {[%clk 0:00:11]} 49. Kxg7 {[%clk 0:00:00]}  c1=Q {[%clk 0:00:11]} 0-1


[Site "https://www.chess.com"]

[Event "Titled Tuesday Blitz July 4 Early 2023"]
[White "Gaal, Zsoka"]
[Black "Lisjak, Zlatko"]
[WhiteFideId "777765"]
[BlackFideId "14502186"]
[WhiteElo "2371"]
[BlackElo "2128"]
[Result "1-0"]
[Round "5"]
[TimeControl "180+2"]
[Date "2023.07.04"]
[WhiteClock "0:00:16"]
[BlackClock "0:00:00"]
[Board "193"]

1. Nf3 {[%clk 0:03:00]}  d6 {[%clk 0:02:56]} 2. b3 {[%clk 0:02:59]}  Bg4 {[%clk 0:02:55]} 3. Bb2 {[%clk 0:02:59]}  Nd7 {[%clk 0:02:54]} 4. g3 {[%clk 0:02:59]}  e5 {[%clk 0:02:52]} 5. Bg2 {[%clk 0:02:59]}  f5 {[%clk 0:02:52]} 6. h3 {[%clk 0:02:52]}  Bxf3 {[%clk 0:02:46]} 7. Bxf3 {[%clk 0:02:52]}  e4 {[%clk 0:02:41]} 8. Bg2 {[%clk 0:02:52]}  Ngf6 {[%clk 0:02:42]} 9. d3 {[%clk 0:02:51]}  d5 {[%clk 0:02:40]} 10. c4 {[%clk 0:02:51]}  c6 {[%clk 0:02:40]} 11. cxd5 {[%clk 0:02:49]}  cxd5 {[%clk 0:02:31]} 12. dxe4 {[%clk 0:02:49]}  fxe4 {[%clk 0:02:31]} 13. O-O {[%clk 0:02:48]}  e3 {[%clk 0:02:25]} 14. fxe3 {[%clk 0:02:47]}  Bd6 {[%clk 0:02:25]} 15. g4 {[%clk 0:02:40]}  Qe7 {[%clk 0:02:13]} 16. Bd4 {[%clk 0:02:33]}  O-O {[%clk 0:02:09]} 17. Nc3 {[%clk 0:02:33]}  Nb6 {[%clk 0:01:41]} 18. g5 {[%clk 0:02:33]}  Nh5 {[%clk 0:01:35]} 19. Nxd5 {[%clk 0:02:02]}  Qxg5 {[%clk 0:01:19]} 20. Bxb6 {[%clk 0:01:58]}  axb6 {[%clk 0:01:07]} 21. Rf3 {[%clk 0:01:20]}  Qe5 {[%clk 0:00:55]} 22. Nf4 {[%clk 0:01:13]}  Nxf4 {[%clk 0:00:32]} 23. exf4 {[%clk 0:01:13]}  Rxf4 {[%clk 0:00:28]} 24. Rd3 {[%clk 0:00:44]}  Bc7 {[%clk 0:00:17]} 25. Rd5 {[%clk 0:00:44]}  Qe3+ {[%clk 0:00:15]} 26. Kh1 {[%clk 0:00:45]}  Rh4 {[%clk 0:00:11]} 27. Qd3 {[%clk 0:00:20]}  Qf2 {[%clk 0:00:00]} 28. Rf1 {[%clk 0:00:16]} 1-0


[Site "https://www.chess.com"]

[Event "Titled Tuesday Blitz July 4 Early 2023"]
[White "Sailer, Mike"]
[Black "Koridze, Lile"]
[WhiteFideId "2012901"]
[BlackFideId "13612514"]
[WhiteElo "2093"]
[BlackElo "2368"]
[Result "1-0"]
[Round "5"]
[TimeControl "180+2"]
[Date "2023.07.04"]
[WhiteClock "0:00:07"]
[BlackClock "0:00:06"]
[Board "194"]

1. d4 {[%clk 0:03:00]}  Nf6 {[%clk 0:02:59]} 2. Nc3 {[%clk 0:03:00]}  d5 {[%clk 0:02:59]} 3. Bf4 {[%clk 0:03:01]}  c6 {[%clk 0:02:53]} 4. Nf3 {[%clk 0:02:59]}  h6 {[%clk 0:02:49]} 5. Ne5 {[%clk 0:02:55]}  Bf5 {[%clk 0:02:49]} 6. e3 {[%clk 0:02:51]}  e6 {[%clk 0:02:48]} 7. g4 {[%clk 0:02:51]}  Be4 {[%clk 0:02:36]} 8. f3 {[%clk 0:02:49]}  Bh7 {[%clk 0:02:34]} 9. h4 {[%clk 0:02:48]}  Nbd7 {[%clk 0:02:31]} 10. g5 {[%clk 0:02:47]}  Nh5 {[%clk 0:02:29]} 11. g6 {[%clk 0:02:00]}  Bxg6 {[%clk 0:02:01]} 12. Nxg6 {[%clk 0:01:59]}  fxg6 {[%clk 0:02:02]} 13. Qd3 {[%clk 0:01:28]}  Qf6 {[%clk 0:01:56]} 14. Be5 {[%clk 0:01:19]}  Nxe5 {[%clk 0:00:57]} 15. dxe5 {[%clk 0:01:19]}  Qxf3 {[%clk 0:00:57]} 16. Qxg6+ {[%clk 0:01:18]}  Qf7 {[%clk 0:00:57]} 17. Qg4 {[%clk 0:01:04]}  Be7 {[%clk 0:00:21]} 18. Bd3 {[%clk 0:01:04]}  g5 {[%clk 0:00:19]} 19. Rf1 {[%clk 0:00:55]}  Qg7 {[%clk 0:00:12]} 20. Qxh5+ {[%clk 0:00:55]}  Kd7 {[%clk 0:00:13]} 21. O-O-O {[%clk 0:00:43]}  Qxe5 {[%clk 0:00:13]} 22. e4 {[%clk 0:00:31]}  Rag8 {[%clk 0:00:06]} 23. exd5 {[%clk 0:00:30]}  exd5 {[%clk 0:00:06]} 24. Rde1 {[%clk 0:00:31]}  Qd6 {[%clk 0:00:06]} 25. Bf5+ {[%clk 0:00:27]}  Kc7 {[%clk 0:00:05]} 26. Qf7 {[%clk 0:00:26]}  Re8 {[%clk 0:00:03]} 27. Bg6 {[%clk 0:00:25]}  Rhf8 {[%clk 0:00:01]} 28. Qxe8 {[%clk 0:00:16]}  Rxe8 {[%clk 0:00:01]} 29. Bxe8 {[%clk 0:00:17]}  gxh4 {[%clk 0:00:02]} 30. Rf7 {[%clk 0:00:14]}  Kb6 {[%clk 0:00:02]} 31. Rfxe7 {[%clk 0:00:14]}  Qf4+ {[%clk 0:00:01]} 32. Kb1 {[%clk 0:00:13]}  h3 {[%clk 0:00:02]} 33. Rd1 {[%clk 0:00:05]}  h2 {[%clk 0:00:02]} 34. Ree1 {[%clk 0:00:06]}  Qg3 {[%clk 0:00:02]} 35. Bd7 {[%clk 0:00:06]}  Qf2 {[%clk 0:00:02]} 36. Bg4 {[%clk 0:00:05]}  h5 {[%clk 0:00:01]} 37. Bxh5 {[%clk 0:00:05]}  Qg3 {[%clk 0:00:02]} 38. Bf7 {[%clk 0:00:05]}  Qf2 {[%clk 0:00:02]} 39. Be6 {[%clk 0:00:05]}  Qg3 {[%clk 0:00:02]} 40. Rh1 {[%clk 0:00:05]}  Qf2 {[%clk 0:00:02]} 41. Bg4 {[%clk 0:00:05]}  Qg3 {[%clk 0:00:03]} 42. Be2 {[%clk 0:00:06]}  Qf2 {[%clk 0:00:03]} 43. a3 {[%clk 0:00:06]}  Kc7 {[%clk 0:00:02]} 44. Rdf1 {[%clk 0:00:06]}  Qg2 {[%clk 0:00:02]} 45. Bd1 {[%clk 0:00:05]}  Qd2 {[%clk 0:00:02]} 46. Ne2 {[%clk 0:00:05]}  a5 {[%clk 0:00:02]} 47. Ng3 {[%clk 0:00:04]}  a4 {[%clk 0:00:03]} 48. Ne2 {[%clk 0:00:03]}  Qh6 {[%clk 0:00:02]} 49. Rf2 {[%clk 0:00:03]}  Qe3 {[%clk 0:00:02]} 50. Rfxh2 {[%clk 0:00:04]}  Qd2 {[%clk 0:00:02]} 51. Ka1 {[%clk 0:00:03]}  Qe3 {[%clk 0:00:02]} 52. Kb1 {[%clk 0:00:04]}  Qd2 {[%clk 0:00:02]} 53. Nc1 {[%clk 0:00:04]}  Qe3 {[%clk 0:00:02]} 54. Nd3 {[%clk 0:00:05]}  Qd4 {[%clk 0:00:03]} 55. Rh4 {[%clk 0:00:04]}  Qe3 {[%clk 0:00:03]} 56. Rxa4 {[%clk 0:00:04]}  Qd2 {[%clk 0:00:03]} 57. Rah4 {[%clk 0:00:04]}  b5 {[%clk 0:00:03]} 58. R4h2 {[%clk 0:00:04]}  Qe3 {[%clk 0:00:03]} 59. Re1 {[%clk 0:00:04]}  Qg3 {[%clk 0:00:03]} 60. Rhe2 {[%clk 0:00:04]}  Qh4 {[%clk 0:00:03]} 61. Re7+ {[%clk 0:00:04]}  Kb6 {[%clk 0:00:03]} 62. Nc1 {[%clk 0:00:04]}  Qg3 {[%clk 0:00:03]} 63. Nb3 {[%clk 0:00:04]}  Qf2 {[%clk 0:00:03]} 64. R1e2 {[%clk 0:00:04]}  Qf1 {[%clk 0:00:04]} 65. Re1 {[%clk 0:00:04]}  Qf2 {[%clk 0:00:04]} 66. Rh1 {[%clk 0:00:04]}  Qg2 {[%clk 0:00:04]} 67. Rhh7 {[%clk 0:00:04]}  Qg1 {[%clk 0:00:04]} 68. Rb7+ {[%clk 0:00:04]}  Ka6 {[%clk 0:00:05]} 69. Ra7+ {[%clk 0:00:04]}  Qxa7 {[%clk 0:00:05]} 70. Rxa7+ {[%clk 0:00:05]}  Kxa7 {[%clk 0:00:06]} 71. Nc5 {[%clk 0:00:05]}  Kb6 {[%clk 0:00:06]} 72. Nd3 {[%clk 0:00:06]}  c5 {[%clk 0:00:06]} 73. b4 {[%clk 0:00:07]}  c4 {[%clk 0:00:06]} 74. Nc5 {[%clk 0:00:07]} 1-0


[Site "https://www.chess.com"]

[Event "Titled Tuesday Blitz July 4 Early 2023"]
[White "Jaivardhan Raj"]
[Black "Ahn, Hongjin"]
[WhiteFideId "25744437"]
[BlackFideId "13201492"]
[WhiteElo "2091"]
[BlackElo "2366"]
[Result "0-1"]
[Round "5"]
[TimeControl "180+2"]
[Date "2023.07.04"]
[WhiteClock "0:00:15"]
[BlackClock "0:01:06"]
[Board "195"]

1. e4 {[%clk 0:03:00]}  e6 {[%clk 0:02:52]} 2. d4 {[%clk 0:03:00]}  d5 {[%clk 0:02:52]} 3. Nd2 {[%clk 0:03:01]}  c5 {[%clk 0:02:52]} 4. exd5 {[%clk 0:03:00]}  Qxd5 {[%clk 0:02:53]} 5. Ngf3 {[%clk 0:02:59]}  cxd4 {[%clk 0:02:52]} 6. Bc4 {[%clk 0:03:00]}  Qd6 {[%clk 0:02:52]} 7. O-O {[%clk 0:02:59]}  Nc6 {[%clk 0:02:53]} 8. Nb3 {[%clk 0:02:58]}  a6 {[%clk 0:02:53]} 9. a4 {[%clk 0:02:55]}  Nf6 {[%clk 0:02:52]} 10. Nbxd4 {[%clk 0:02:54]}  Be7 {[%clk 0:02:51]} 11. c3 {[%clk 0:02:52]}  O-O {[%clk 0:02:49]} 12. Be3 {[%clk 0:02:52]}  Rd8 {[%clk 0:02:41]} 13. Qe2 {[%clk 0:02:44]}  Qc7 {[%clk 0:02:36]} 14. Nxc6 {[%clk 0:02:31]}  Qxc6 {[%clk 0:02:36]} 15. a5 {[%clk 0:02:20]}  Nd5 {[%clk 0:02:30]} 16. Nd4 {[%clk 0:02:04]}  Qc7 {[%clk 0:02:14]} 17. Bxd5 {[%clk 0:01:55]}  Rxd5 {[%clk 0:02:13]} 18. c4 {[%clk 0:01:52]}  Rxa5 {[%clk 0:02:07]} 19. Rxa5 {[%clk 0:01:14]}  Qxa5 {[%clk 0:02:08]} 20. Rd1 {[%clk 0:01:12]}  Bd7 {[%clk 0:02:03]} 21. Nb3 {[%clk 0:01:05]}  Qc7 {[%clk 0:02:00]} 22. c5 {[%clk 0:00:59]}  Bc6 {[%clk 0:01:45]} 23. Bd2 {[%clk 0:00:43]}  Ba4 {[%clk 0:01:35]} 24. Ba5 {[%clk 0:00:32]}  Qc6 {[%clk 0:01:31]} 25. Qd3 {[%clk 0:00:22]}  Bxb3 {[%clk 0:01:20]} 26. Qxb3 {[%clk 0:00:20]}  Bxc5 {[%clk 0:01:19]} 27. Qc3 {[%clk 0:00:14]}  b6 {[%clk 0:00:58]} 28. Bb4 {[%clk 0:00:13]}  h6 {[%clk 0:00:54]} 29. Bxc5 {[%clk 0:00:11]}  Qxc5 {[%clk 0:00:55]} 30. Qxc5 {[%clk 0:00:11]}  bxc5 {[%clk 0:00:55]} 31. Rc1 {[%clk 0:00:11]}  Rb8 {[%clk 0:00:52]} 32. Rxc5 {[%clk 0:00:08]}  Rxb2 {[%clk 0:00:52]} 33. Kf1 {[%clk 0:00:09]}  Rb8 {[%clk 0:00:52]} 34. Ra5 {[%clk 0:00:09]}  Ra8 {[%clk 0:00:52]} 35. Ke2 {[%clk 0:00:09]}  Kf8 {[%clk 0:00:53]} 36. Kd3 {[%clk 0:00:10]}  Ke7 {[%clk 0:00:53]} 37. Kc4 {[%clk 0:00:11]}  Kd6 {[%clk 0:00:54]} 38. f3 {[%clk 0:00:11]}  Kc6 {[%clk 0:00:55]} 39. g4 {[%clk 0:00:11]}  Kb6 {[%clk 0:00:55]} 40. Ra2 {[%clk 0:00:10]}  a5 {[%clk 0:00:56]} 41. Rb2+ {[%clk 0:00:11]}  Kc6 {[%clk 0:00:56]} 42. Ra2 {[%clk 0:00:09]}  a4 {[%clk 0:00:57]} 43. Kb4 {[%clk 0:00:09]}  a3 {[%clk 0:00:57]} 44. Rxa3 {[%clk 0:00:08]}  Rxa3 {[%clk 0:00:57]} 45. Kxa3 {[%clk 0:00:09]}  Kd5 {[%clk 0:00:58]} 46. Kb4 {[%clk 0:00:09]}  Kd4 {[%clk 0:00:59]} 47. h4 {[%clk 0:00:08]}  Ke3 {[%clk 0:00:59]} 48. Kc5 {[%clk 0:00:09]}  Kxf3 {[%clk 0:01:00]} 49. Kd6 {[%clk 0:00:09]}  Kxg4 {[%clk 0:01:00]} 50. Ke7 {[%clk 0:00:10]}  Kxh4 {[%clk 0:00:59]} 51. Kxf7 {[%clk 0:00:10]}  e5 {[%clk 0:01:00]} 52. Kxg7 {[%clk 0:00:11]}  e4 {[%clk 0:01:01]} 53. Kxh6 {[%clk 0:00:11]}  e3 {[%clk 0:01:02]} 54. Kg7 {[%clk 0:00:12]}  e2 {[%clk 0:01:03]} 55. Kg6 {[%clk 0:00:13]}  e1=Q {[%clk 0:01:04]} 56. Kg7 {[%clk 0:00:14]}  Qe6 {[%clk 0:01:03]} 57. Kf8 {[%clk 0:00:14]}  Qd7 {[%clk 0:01:03]} 58. Kg8 {[%clk 0:00:14]}  Qe7 {[%clk 0:01:04]} 59. Kh8 {[%clk 0:00:15]}  Kg5 {[%clk 0:01:04]} 60. Kg8 {[%clk 0:00:15]}  Kg6 {[%clk 0:01:05]} 61. Kh8 {[%clk 0:00:15]}  Qe8# {[%clk 0:01:06]} 0-1


[Site "https://www.chess.com"]

[Event "Titled Tuesday Blitz July 4 Early 2023"]
[White "Barbot, Pierre"]
[Black "Aanna12"]
[WhiteFideId "663727"]
[WhiteElo "2365"]
[BlackElo "2082"]
[Result "1-0"]
[Round "5"]
[TimeControl "180+2"]
[Date "2023.07.04"]
[WhiteClock "0:00:10"]
[BlackClock "0:00:00"]
[Board "196"]

1. d4 {[%clk 0:03:00]}  Nf6 {[%clk 0:02:57]} 2. Nf3 {[%clk 0:02:59]}  d6 {[%clk 0:02:54]} 3. Bf4 {[%clk 0:02:54]}  Nbd7 {[%clk 0:02:54]} 4. e3 {[%clk 0:02:52]}  g6 {[%clk 0:02:51]} 5. h3 {[%clk 0:02:51]}  Bg7 {[%clk 0:02:51]} 6. Be2 {[%clk 0:02:49]}  O-O {[%clk 0:02:51]} 7. O-O {[%clk 0:02:49]}  Re8 {[%clk 0:02:51]} 8. Bh2 {[%clk 0:02:49]}  e5 {[%clk 0:02:51]} 9. c4 {[%clk 0:02:44]}  Qe7 {[%clk 0:02:29]} 10. Nc3 {[%clk 0:02:35]}  c6 {[%clk 0:02:29]} 11. Rc1 {[%clk 0:02:15]}  a6 {[%clk 0:02:26]} 12. b4 {[%clk 0:02:07]}  e4 {[%clk 0:02:08]} 13. Nd2 {[%clk 0:02:06]}  d5 {[%clk 0:02:07]} 14. c5 {[%clk 0:01:57]}  Nf8 {[%clk 0:01:57]} 15. a4 {[%clk 0:01:47]}  N6d7 {[%clk 0:01:45]} 16. Qb3 {[%clk 0:01:37]}  Ne6 {[%clk 0:01:39]} 17. b5 {[%clk 0:01:35]}  f5 {[%clk 0:01:37]} 18. Bd6 {[%clk 0:01:26]}  Qf7 {[%clk 0:01:35]} 19. bxc6 {[%clk 0:01:19]}  bxc6 {[%clk 0:01:35]} 20. a5 {[%clk 0:01:20]}  f4 {[%clk 0:01:32]} 21. Bg4 {[%clk 0:01:08]}  Ndf8 {[%clk 0:01:24]} 22. Nxd5 {[%clk 0:00:37]}  cxd5 {[%clk 0:01:22]} 23. Qxd5 {[%clk 0:00:37]}  Ra7 {[%clk 0:00:49]} 24. Nxe4 {[%clk 0:00:37]}  h5 {[%clk 0:00:44]} 25. Bf3 {[%clk 0:00:34]}  Nh7 {[%clk 0:00:16]} 26. exf4 {[%clk 0:00:32]}  Nxd4 {[%clk 0:00:12]} 27. Ng5 {[%clk 0:00:20]}  Nxf3+ {[%clk 0:00:11]} 28. Qxf3 {[%clk 0:00:21]}  Nxg5 {[%clk 0:00:10]} 29. fxg5 {[%clk 0:00:20]}  Qxf3 {[%clk 0:00:10]} 30. gxf3 {[%clk 0:00:21]}  Bf5 {[%clk 0:00:08]} 31. c6 {[%clk 0:00:21]}  Rc8 {[%clk 0:00:07]} 32. c7 {[%clk 0:00:21]}  Bf8 {[%clk 0:00:06]} 33. Bf4 {[%clk 0:00:17]}  Rb7 {[%clk 0:00:05]} 34. Rfd1 {[%clk 0:00:17]}  Be7 {[%clk 0:00:05]} 35. Re1 {[%clk 0:00:17]}  Kf7 {[%clk 0:00:05]} 36. Re2 {[%clk 0:00:15]}  Rb5 {[%clk 0:00:04]} 37. Rce1 {[%clk 0:00:13]}  Bf8 {[%clk 0:00:02]} 38. Rd1 {[%clk 0:00:11]}  Rxa5 {[%clk 0:00:00]} 39. Rd8 {[%clk 0:00:10]} 1-0


[Site "https://www.chess.com"]

[Event "Titled Tuesday Blitz July 4 Early 2023"]
[White "Fernandez, Michael"]
[Black "Floresvillar Gonzalez, Luis Migu"]
[WhiteFideId "5803560"]
[BlackFideId "5100542"]
[WhiteElo "2361"]
[BlackElo "2076"]
[Result "0-1"]
[Round "5"]
[TimeControl "180+2"]
[Date "2023.07.04"]
[WhiteClock "0:00:52"]
[BlackClock "0:01:26"]
[Board "197"]

1. d4 {[%clk 0:03:00]}  d5 {[%clk 0:02:55]} 2. c4 {[%clk 0:03:00]}  c6 {[%clk 0:02:54]} 3. Nc3 {[%clk 0:03:00]}  Nf6 {[%clk 0:02:54]} 4. cxd5 {[%clk 0:03:00]}  cxd5 {[%clk 0:02:52]} 5. f3 {[%clk 0:03:00]}  Nc6 {[%clk 0:02:50]} 6. e4 {[%clk 0:03:00]}  dxe4 {[%clk 0:02:49]} 7. d5 {[%clk 0:03:00]}  exf3 {[%clk 0:02:39]} 8. dxc6 {[%clk 0:02:54]}  f2+ {[%clk 0:02:22]} 9. Kxf2 {[%clk 0:02:53]}  Qb6+ {[%clk 0:02:03]} 10. Ke1 {[%clk 0:02:48]}  bxc6 {[%clk 0:01:56]} 11. Bc4 {[%clk 0:02:37]}  Bg4 {[%clk 0:01:53]} 12. Nf3 {[%clk 0:02:35]}  Rd8 {[%clk 0:01:51]} 13. Qe2 {[%clk 0:02:32]}  e6 {[%clk 0:01:48]} 14. Be3 {[%clk 0:02:20]}  Bc5 {[%clk 0:01:48]} 15. Bxc5 {[%clk 0:02:14]}  Qxc5 {[%clk 0:01:47]} 16. Rd1 {[%clk 0:02:03]}  O-O {[%clk 0:01:46]} 17. Rxd8 {[%clk 0:01:52]}  Rxd8 {[%clk 0:01:45]} 18. Bb3 {[%clk 0:01:42]}  a5 {[%clk 0:01:32]} 19. h3 {[%clk 0:01:05]}  Bh5 {[%clk 0:01:28]} 20. g4 {[%clk 0:01:04]}  Bg6 {[%clk 0:01:27]} 21. Kf1 {[%clk 0:00:52]}  Bd3 {[%clk 0:01:26]} 0-1


[Site "https://www.chess.com"]

[Event "Titled Tuesday Blitz July 4 Early 2023"]
[White "Goswami, Vedant"]
[Black "Guevara Sanchez, Erick Marvin"]
[WhiteFideId "5003725"]
[BlackFideId "6700136"]
[WhiteElo "2358"]
[BlackElo "2059"]
[Result "1-0"]
[Round "5"]
[TimeControl "180+2"]
[Date "2023.07.04"]
[WhiteClock "0:00:18"]
[BlackClock "0:00:37"]
[Board "199"]

1. b3 {[%clk 0:03:00]}  e5 {[%clk 0:02:49]} 2. Bb2 {[%clk 0:02:59]}  Nc6 {[%clk 0:02:48]} 3. c4 {[%clk 0:02:48]}  Nf6 {[%clk 0:02:44]} 4. Nf3 {[%clk 0:02:44]}  d6 {[%clk 0:02:43]} 5. e3 {[%clk 0:02:41]}  Be7 {[%clk 0:02:42]} 6. d4 {[%clk 0:02:40]}  Bf5 {[%clk 0:02:31]} 7. Nc3 {[%clk 0:02:29]}  exd4 {[%clk 0:02:22]} 8. Nxd4 {[%clk 0:02:28]}  Nxd4 {[%clk 0:02:22]} 9. Qxd4 {[%clk 0:02:28]}  O-O {[%clk 0:02:21]} 10. Nd5 {[%clk 0:02:21]}  Re8 {[%clk 0:02:04]} 11. Be2 {[%clk 0:02:16]}  c6 {[%clk 0:01:51]} 12. Nxe7+ {[%clk 0:02:14]}  Qxe7 {[%clk 0:01:52]} 13. O-O-O {[%clk 0:01:39]}  d5 {[%clk 0:01:44]} 14. g4 {[%clk 0:01:32]}  Be4 {[%clk 0:01:34]} 15. g5 {[%clk 0:01:05]}  Bxh1 {[%clk 0:01:34]} 16. gxf6 {[%clk 0:01:05]}  Qe4 {[%clk 0:01:31]} 17. fxg7 {[%clk 0:00:57]}  Qxd4 {[%clk 0:01:30]} 18. Bxd4 {[%clk 0:00:56]}  Be4 {[%clk 0:01:30]} 19. c5 {[%clk 0:00:53]}  Bg6 {[%clk 0:01:29]} 20. h4 {[%clk 0:00:52]}  h5 {[%clk 0:01:29]} 21. Rg1 {[%clk 0:00:47]}  Re4 {[%clk 0:01:28]} 22. f4 {[%clk 0:00:47]}  Rae8 {[%clk 0:01:23]} 23. Kd2 {[%clk 0:00:46]}  a5 {[%clk 0:01:03]} 24. Bd3 {[%clk 0:00:39]}  Rxd4 {[%clk 0:00:51]} 25. exd4 {[%clk 0:00:38]}  Bxd3 {[%clk 0:00:51]} 26. Kxd3 {[%clk 0:00:37]}  Re4 {[%clk 0:00:51]} 27. f5 {[%clk 0:00:22]}  Rxh4 {[%clk 0:00:49]} 28. Rg5 {[%clk 0:00:20]}  Rg4 {[%clk 0:00:47]} 29. Rxg4 {[%clk 0:00:19]}  hxg4 {[%clk 0:00:46]} 30. f6 {[%clk 0:00:19]}  Kh7 {[%clk 0:00:43]} 31. Ke3 {[%clk 0:00:19]}  Kg8 {[%clk 0:00:42]} 32. Kf4 {[%clk 0:00:19]}  g3 {[%clk 0:00:41]} 33. Kxg3 {[%clk 0:00:19]}  a4 {[%clk 0:00:41]} 34. bxa4 {[%clk 0:00:18]}  Kh7 {[%clk 0:00:38]} 35. Kf4 {[%clk 0:00:18]}  Kg8 {[%clk 0:00:37]} 36. Ke5 {[%clk 0:00:18]}  Kh7 {[%clk 0:00:37]} 37. Kd6 {[%clk 0:00:18]}  Kg8 {[%clk 0:00:37]} 38. Kc7 {[%clk 0:00:18]}  Kh7 {[%clk 0:00:37]} 39. Kxb7 {[%clk 0:00:18]}  Kg8 {[%clk 0:00:37]} 40. Kxc6 {[%clk 0:00:18]}  Kh7 {[%clk 0:00:37]} 41. Kxd5 {[%clk 0:00:19]}  Kg8 {[%clk 0:00:37]} 42. c6 {[%clk 0:00:19]}  Kh7 {[%clk 0:00:37]} 43. c7 {[%clk 0:00:19]}  Kg8 {[%clk 0:00:37]} 44. c8=Q+ {[%clk 0:00:18]}  Kh7 {[%clk 0:00:37]} 45. g8=Q+ {[%clk 0:00:17]}  Kh6 {[%clk 0:00:37]} 46. Qg7+ {[%clk 0:00:17]}  Kh5 {[%clk 0:00:37]} 47. Qch8# {[%clk 0:00:18]} 1-0


[Site "https://www.chess.com"]

[Event "Titled Tuesday Blitz July 4 Early 2023"]
[White "Skiadopoulos, Nikolaos"]
[Black "Osinovsky, Stepan"]
[WhiteFideId "4200772"]
[BlackFideId "4157354"]
[WhiteElo "1888"]
[BlackElo "2293"]
[Result "0-1"]
[Round "5"]
[TimeControl "180+2"]
[Date "2023.07.04"]
[WhiteClock "0:01:04"]
[BlackClock "0:00:28"]
[Board "201"]

1. e4 {[%clk 0:02:59]}  e5 {[%clk 0:02:57]} 2. Nf3 {[%clk 0:02:58]}  Nc6 {[%clk 0:02:53]} 3. Bc4 {[%clk 0:02:58]}  Nf6 {[%clk 0:02:53]} 4. Ng5 {[%clk 0:02:57]}  d5 {[%clk 0:02:51]} 5. exd5 {[%clk 0:02:56]}  Na5 {[%clk 0:02:51]} 6. Bb5+ {[%clk 0:02:56]}  c6 {[%clk 0:02:44]} 7. dxc6 {[%clk 0:02:53]}  bxc6 {[%clk 0:02:45]} 8. Be2 {[%clk 0:02:52]}  h6 {[%clk 0:02:43]} 9. Nh3 {[%clk 0:02:51]}  Bxh3 {[%clk 0:02:40]} 10. gxh3 {[%clk 0:02:50]}  Bd6 {[%clk 0:02:37]} 11. d3 {[%clk 0:02:46]}  O-O {[%clk 0:02:32]} 12. Nc3 {[%clk 0:02:42]}  Nb7 {[%clk 0:02:30]} 13. Rg1 {[%clk 0:02:36]}  Kh7 {[%clk 0:02:27]} 14. Be3 {[%clk 0:02:30]}  Nc5 {[%clk 0:02:26]} 15. Qd2 {[%clk 0:02:22]}  Rb8 {[%clk 0:02:24]} 16. O-O-O {[%clk 0:02:10]}  Qb6 {[%clk 0:02:01]} 17. b3 {[%clk 0:02:04]}  Qa5 {[%clk 0:01:54]} 18. Rxg7+ {[%clk 0:01:54]}  Kxg7 {[%clk 0:01:53]} 19. Bxh6+ {[%clk 0:01:54]}  Kh7 {[%clk 0:01:51]} 20. Qg5 {[%clk 0:01:53]}  Rg8 {[%clk 0:01:07]} 21. Qh4 {[%clk 0:01:52]}  Rg6 {[%clk 0:00:56]} 22. Bg5+ {[%clk 0:01:46]}  Kg7 {[%clk 0:00:55]} 23. Bxf6+ {[%clk 0:01:45]}  Rxf6 {[%clk 0:00:55]} 24. Bh5 {[%clk 0:01:26]}  Qxc3 {[%clk 0:00:45]} 25. Rg1+ {[%clk 0:01:25]}  Rg6 {[%clk 0:00:44]} 26. Kb1 {[%clk 0:01:04]}  Rxg1+ {[%clk 0:00:28]} 0-1


[Site "https://www.chess.com"]